bitfinex/quotes_ETHUSD_20241223
["timestamp","ask_amount","ask_price","bid_price","bid_amount"]
[1734981620420,0.01,3351.0,3350.6,0.8263]
[1734981620966,2.99427,3351.0,3350.6,0.8263]
[1734981621319,2.9843,3350.9,3350.6,0.8263]
[1734981621466,0.01,3351.0,3350.6,0.8263]
[1734981621891,0.01,3351.0,3350.2,0.8201]
[1734981621892,0.30941,3351.0,3350.2,0.8201]
[1734981622094,0.01,3351.0,3350.2,0.8201]
[1734981622509,2.98445,3350.7,3350.2,0.8201]
[1734981622712,2.98481,3350.3,3349.8,0.8201]
[1734981622932,0.7878,3350.7,3349.8,0.8201]
[1734981623143,0.7878,3350.7,3349.4,0.60405354]
[1734981623144,2.98517,3349.9,3349.4,0.8201]
[1734981623708,2.98519,3349.9,3349.4,0.8201]
[1734981624053,2.98448,3350.7,3349.6,0.8303]
[1734981624336,2.98461,3350.6,3349.6,1.22004844]
[1734981625133,0.299448,3350.7,3349.6,1.22004844]
[1734981625432,3.283928,3350.7,3349.6,0.8303]
[1734981625632,0.299448,3350.7,3349.6,0.8303]
[1734981625801,0.299448,3350.7,3349.7,0.02985126]
[1734981626004,2.99426,3351.0,3349.8,3.78606]
[1734981626307,0.01,3351.0,3349.8,0.8009]
[1734981626991,2.98466,3350.5,3349.8,0.8009]
[1734981627196,2.98438,3350.8,3349.8,0.8009]
[1734981627517,3.01,3351.0,3350.0,0.8089]
[1734981627718,3.4556088,3351.0,3350.0,0.8089]
[1734981628046,2.98451,3350.7,3350.0,0.8089]
[1734981628417,2.98456,3350.6,3350.0,0.8089]
[1734981628621,2.98466,3350.5,3350.0,0.8089]
[1734981628867,2.98483,3350.3,3350.0,0.8089]
[1734981629177,0.298466,3350.4,3349.6,0.8072]
[1734981629367,0.298466,3350.4,3348.6,3.03733131]
[1734981629368,2.98518,3349.9,3349.2,0.7903]
[1734981629579,2.98527,3349.8,3349.2,0.7903]
[1734981630273,3.0,3350.2,3349.2,0.7903]
[1734981630478,2.9851,3350.0,3349.2,0.7903]
[1734981630619,5.98475,3350.4,3349.2,0.7903]
[1734981630824,3.0,3350.2,3349.2,0.7903]
[1734981631139,2.98523,3349.9,3349.2,0.7903]
[1734981631335,2.98533,3349.8,3349.2,0.7903]
[1734981631718,2.98508,3350.0,3349.2,0.7903]
[1734981631971,2.98519,3349.9,3349.2,0.7903]
[1734981632175,0.298519,3349.8,3349.2,0.7903]
[1734981632322,0.298519,3349.8,3349.3,0.04605434]
[1734981633374,2.9856,3349.4,3348.9,0.7633]
[1734981633591,0.7606,3350.2,3349.0,0.02985954]
[1734981633720,3.49294011,3351.0,3349.3,2.98567]
[1734981633721,0.7606,3350.7,3349.3,2.98567]
[1734981633926,2.98484,3350.3,3349.4,0.04050297]
[1734981634177,3.58679194,3350.6,3349.4,0.04050297]
[1734981634340,2.98491,3350.2,3349.4,0.04050297]
[1734981634680,2.21731,3350.2,3349.1,0.7633]
[1734981634826,0.73319119,3350.5,3349.1,0.7633]
[1734981635022,0.73319119,3350.5,3349.2,0.04063438]
[1734981635427,2.98499,3350.1,3349.2,0.04063438]
[1734981635627,2.98509,3350.0,3349.3,0.37898644]
[1734981635861,0.73319119,3350.5,3349.2,0.04063438]
[1734981636062,0.7664,3350.3,3349.4,0.04050297]
[1734981636218,2.98539,3349.7,3349.3,0.04046974]
[1734981636423,2.98539,3349.7,3349.1,0.7633]
[1734981636987,2.98489,3350.2,3349.1,0.7633]
[1734981636988,2.98489,3350.2,3349.2,0.04053544]
[1734981637286,2.98569,3349.3,3349.2,0.04053544]
[1734981637431,2.98585,3349.2,3348.7,0.8019]
[1734981637776,0.8123,3349.5,3348.8,0.04079831]
[1734981638087,2.98605,3348.9,3348.3,0.822]
[1734981638286,2.9856,3349.4,3348.3,0.822]
[1734981638441,3.36539,3349.4,3348.4,0.04106124]
[1734981638627,2.98599,3349.0,3348.3,0.822]
[1734981639025,2.98605,3348.9,3348.4,0.04106124]
[1734981639987,2.98634,3348.6,3348.4,0.04106124]
[1734981640129,2.98641,3348.5,3348.3,0.822]
[1734981640329,0.37979,3349.4,3347.6,0.7628]
[1734981640575,0.37979,3349.4,3347.7,0.42068679]
[1734981640576,2.98643,3348.5,3347.7,0.42068679]
[1734981640880,2.98651,3348.4,3347.7,0.42068679]
[1734981641464,2.98642,3348.5,3347.7,0.42068679]
[1734981642245,2.98659,3348.3,3347.7,0.42068679]
[1734981642435,2.98659,3348.3,3347.7,0.04067366]
[1734981643170,2.98623,3348.7,3347.7,0.04067366]
[1734981643372,2.9868,3348.1,3347.6,0.7628]
[1734981643588,2.98644,3348.5,3347.7,0.04125403]
[1734981643980,2.98651,3348.4,3347.7,0.04125403]
[1734981644157,0.7584,3348.8,3347.7,0.42338338]
[1734981644352,0.7736,3349.1,3347.7,0.04125403]
[1734981644672,0.6101362,3349.2,3347.7,0.07112014]
[1734981644915,0.7736,3350.0,3348.2,0.7781]
[1734981645212,2.98527,3349.8,3348.8,0.7781]
[1734981645357,3.75875,3350.0,3348.8,0.7781]
[1734981645562,2.98507,3350.0,3349.1,0.8227]
[1734981645760,2.98523,3349.9,3349.2,0.04026797]
[1734981646496,2.98526,3349.8,3349.2,0.04026797]
[1734981646690,3.0,3349.7,3349.2,0.04026797]
[1734981647460,2.98543,3349.6,3349.2,0.04026797]
[1734981649433,3.0,3349.8,3349.2,0.04026797]
[1734981649629,2.98471,3350.4,3349.4,2.9856]
[1734981649811,1.36478213,3350.5,3349.6,0.7525]
[1734981650014,2.9848,3350.3,3349.7,0.03944001]
[1734981650336,2.9848,3350.3,3349.6,0.7525]
[1734981650531,2.98458,3350.6,3349.6,0.7525]
[1734981650709,2.98458,3350.6,3349.7,0.03944001]
[1734981651222,2.98458,3350.6,3349.8,0.03937433]
[1734981651634,3.57919937,3350.9,3349.8,3.05445541]
[1734981651924,3.57912937,3350.9,3349.8,3.05445385]
[1734981652138,2.98452,3350.7,3349.8,0.03937433]
[1734981652342,0.59483937,3350.9,3349.8,0.03937433]
[1734981652522,2.98446,3350.7,3349.8,0.03937433]
[1734981652727,2.98446,3350.7,3349.6,3.73792]
[1734981653038,2.98446,3350.7,3349.7,3.02388927]
[1734981653389,3.01,3351.0,3349.8,0.7525]
[1734981653741,3.01,3351.0,3350.1,2.98494]
[1734981653919,0.01,3351.0,3350.8,0.7525]
[1734981654329,0.01,3351.0,3350.9,0.03772762]
[1734981654844,0.01,3351.0,3350.8,0.7525]
[1734981655003,0.01,3351.0,3350.9,0.03611063]
[1734981655339,0.01,3351.0,3350.2,3.73738]
[1734981655638,0.01,3351.0,3350.3,0.41010431]
[1734981655843,0.01,3351.0,3350.3,3.39490431]
[1734981656223,0.01,3351.0,3350.3,0.41010431]
[1734981656586,2.9942,3351.0,3350.3,0.03636631]
[1734981657303,2.98435,3350.9,3350.3,0.03636631]
[1734981657488,0.01,3351.0,3350.3,0.03636631]
[1734981657688,0.7705,3350.7,3350.3,0.03636631]
[1734981657999,2.98484,3350.3,3349.8,0.8141]
[1734981658330,2.98484,3350.3,3349.9,0.03514875]
[1734981658827,2.98484,3350.3,3349.8,0.8141]
[1734981659000,2.98484,3350.3,3349.9,0.03514875]
[1734981659198,0.01,3351.0,3349.9,0.03514875]
[1734981659400,0.01,3351.0,3350.2,2.98487]
[1734981659626,0.01,3351.0,3350.3,0.83260805]
[1734981659815,0.01,3351.0,3350.3,1.21435586]
[1734981660326,0.01,3351.0,3350.3,0.83260805]
[1734981660327,2.98429,3350.9,3350.3,0.83260805]
[1734981660526,0.01,3351.0,3350.3,0.83260805]
[1734981660731,0.01,3351.0,3350.5,2.98456]
[1734981661030,0.01,3351.0,3350.6,0.03472854]
[1734981661329,0.01,3351.0,3350.3,3.7823]
[1734981661485,0.01,3351.0,3350.7,0.03466289]
[1734981661691,2.98429,3350.9,3350.3,0.7975]
[1734981661916,2.98427,3350.9,3350.8,0.0334203]
[1734981662149,2.98427,3350.9,3350.3,0.7975]
[1734981662348,0.01,3351.0,3350.3,0.7975]
[1734981662533,0.01,3351.0,3350.4,0.03370771]
[1734981662746,0.01,3351.0,3350.9,0.7975]
[1734981663295,0.01,3351.0,3350.9,0.83081538]
[1734981663615,0.01,3351.0,3350.9,0.03331538]
[1734981663842,2.99418,3351.0,3350.4,0.7975]
[1734981664040,2.98446,3350.7,3350.5,0.03356319]
[1734981664358,3.373458,3351.0,3349.8,2.98521]
[1734981664678,0.01,3351.0,3350.0,0.7975]
[1734981664881,0.01,3351.0,3350.1,2.98492]
[1734981665352,0.01,3351.0,3350.2,0.03376018]
[1734981665821,0.01,3351.0,3350.3,0.7862]
[1734981666023,0.01,3351.0,3350.9,0.7862]
[1734981666260,0.01,3351.0,3350.9,1.163252]
[1734981666449,0.01,3351.0,3350.9,1.19661174]
[1734981667159,0.01,3351.0,3350.9,4.18088174]
[1734981668959,0.01,3351.0,3350.9,1.19661174]
[1734981669159,0.01,3351.0,3350.9,0.81955974]
[1734981669860,0.01,3351.0,3350.9,3.80382974]
[1734981670356,0.01,3351.0,3350.9,0.81955974]
[1734981671162,0.01,3351.0,3350.9,3.80382974]
[1734981672629,0.01,3351.0,3350.9,3.83366531]
[1734981672823,1e-05,3351.0,3350.9,4.7893824]
[1734981673877,1e-05,3351.0,3350.9,4.8192151]
[1734981674034,0.1712636,3351.5,3351.1,0.8272]
[1734981674035,3.6e-06,3351.5,3351.1,0.8272]
[1734981674232,3.11315067,3353.5,3352.8,2.98258]
[1734981674542,3.11315067,3353.5,3352.8,4.14093001]
[1734981674761,3.11315067,3353.5,3352.8,3.31373001]
[1734981675081,3.11315067,3354.2,3353.4,3.81484]
[1734981675251,3.11315067,3354.2,3353.5,0.04076167]
[1734981675452,3.11315067,3354.2,3353.8,0.8328]
[1734981675695,3.11315067,3354.2,3353.9,0.04040422]
[1734981676373,0.34900686,3354.1,3353.9,0.04040422]
[1734981676693,2.98151,3354.1,3353.3,0.8089]
[1734981676892,6.35816792,3354.3,3353.3,0.8089]
[1734981677106,2.98135,3354.2,3353.4,0.04513474]
[1734981678155,1.14361792,3354.3,3353.4,0.04513474]
[1734981678396,2.98144,3354.1,3353.4,0.04513474]
[1734981678556,0.41250579,3354.0,3353.3,0.8089]
[1734981678770,3.37691792,3354.3,3353.3,0.8089]
[1734981678981,0.37691792,3354.3,3353.3,0.8089]
[1734981679167,2.98143,3354.1,3353.4,0.04515932]
[1734981679350,0.37691792,3354.3,3353.3,0.8089]
[1734981679553,3.35815792,3354.3,3353.5,0.04505008]
[1734981679886,3.33581579,3354.2,3353.6,0.04494085]
[1734981680197,2.98143,3354.1,3353.6,0.04494085]
[1734981680380,3.33581579,3354.2,3353.3,0.8089]
[1734981680558,2.98153,3354.0,3353.7,0.04483163]
[1734981680752,2.98153,3354.0,3353.3,0.8089]
[1734981680953,0.33173458,3353.9,3353.3,0.8089]
[1734981681153,2.98153,3354.0,3353.4,0.04515932]
[1734981681456,2.98151,3354.0,3353.4,0.04515932]
[1734981681651,0.33581579,3354.2,3353.4,0.04515932]
[1734981681652,0.7789,3354.1,3353.4,0.04515932]
[1734981681890,0.7789,3354.1,3353.0,0.8154]
[1734981682229,0.37691792,3354.3,3353.0,0.8154]
[1734981682378,0.37691792,3354.3,3353.2,2.98214]
[1734981682575,0.37691792,3354.3,3353.3,3.361874]
[1734981682793,0.37691792,3354.3,3353.3,3.40714256]
[1734981683606,0.37691792,3354.3,3353.4,0.79471491]
[1734981683807,0.37691792,3354.3,3353.4,0.7649]
[1734981684009,0.37691792,3354.3,3353.5,0.04505008]
[1734981684225,2.98145,3354.1,3353.5,0.04505008]
[1734981684524,2.98145,3354.1,3353.6,0.04494085]
[1734981684724,3.31728679,3354.1,3353.6,0.04494085]
[1734981684911,2.98151,3354.0,3353.4,0.7649]
[1734981685109,2.9816,3353.9,3353.7,0.04483163]
[1734981685281,2.9816,3353.9,3353.4,0.7649]
[1734981685632,2.98176,3353.8,3352.7,0.8161]
[1734981685784,3.39148968,3353.8,3352.7,0.8161]
[1734981686126,0.40972968,3353.8,3352.8,3.02834487]
[1734981686293,2.98161,3353.9,3352.8,3.02834487]
[1734981686628,2.98177,3353.8,3352.8,0.04581487]
[1734981687007,1.11553679,3354.1,3352.8,0.04581487]
[1734981687227,0.7797,3354.1,3352.8,3.02831487]
[1734981687944,0.37691792,3354.3,3353.3,2.98211]
[1734981688145,0.37691792,3354.3,3353.4,2.98201]
[1734981688314,0.37691792,3354.3,3353.5,0.83151688]
[1734981688745,0.37691792,3354.3,3353.6,0.04526861]
[1734981689471,0.37691792,3354.3,3353.7,3.78342]
[1734981689622,0.37691792,3354.3,3353.7,0.8017]
[1734981689830,0.37691792,3354.3,3353.8,0.04505017]
[1734981690845,0.37691792,3354.3,3353.8,3.02673017]
[1734981691005,0.37691792,3354.3,3353.9,0.8017]
[1734981691201,0.37691792,3354.3,3353.9,0.84664096]
[1734981693902,0.37691792,3354.3,3353.9,1.22948806]
[1734981694568,0.37691792,3354.3,3354.0,0.7809]
[1734981694926,0.37691792,3354.3,3354.1,0.04416539]
[1734981696945,0.1712636,3354.9,3354.1,0.04416539]
[1734981697163,0.1712636,3354.9,3354.6,0.7809]
[1734981697558,0.1712636,3354.9,3354.1,0.04416539]
[1734981697559,2.9808,3354.8,3354.7,0.04351034]
[1734981697921,3.29600636,3354.8,3354.1,0.7809]
[1734981698320,3.29600636,3354.8,3354.2,0.0440562]
[1734981698971,0.7777,3354.7,3353.5,0.7809]
[1734981699377,2.9812,3354.4,3353.5,0.7809]
[1734981699679,2.98142,3354.1,3353.5,0.7809]
[1734981700034,0.7777,3354.7,3353.5,0.7809]
[1734981700238,2.98162,3353.9,3353.5,0.7809]
[1734981700451,0.38230493,3354.6,3353.2,0.7846]
[1734981700794,2.98159,3354.0,3353.2,0.7846]
[1734981700938,3.0,3354.2,3353.2,0.7846]
[1734981701134,2.98177,3353.8,3353.2,0.7846]
[1734981701949,2.98147,3354.1,3353.2,0.7846]
[1734981702280,0.5322495,3354.3,3353.2,0.7846]
[1734981702493,2.98152,3354.0,3353.2,0.7846]
[1734981703539,2.98165,3353.9,3353.2,0.7846]
[1734981703735,0.5322495,3354.3,3353.2,0.7846]
[1734981703938,2.98171,3353.8,3353.2,0.7846]
[1734981704358,0.54482321,3354.2,3353.2,0.7846]
[1734981704560,2.98189,3353.6,3352.5,2.98276]
[1734981704753,2.98189,3353.6,3352.2,3.7846]
[1734981704754,2.98196,3353.5,3352.2,3.7846]
[1734981704958,2.98196,3353.5,3352.4,2.98289]
[1734981705190,2.98157,3354.0,3352.6,2.98274]
[1734981705503,2.98157,3354.0,3352.5,0.676749]
[1734981705504,3.0,3354.0,3352.8,2.98256]
[1734981705644,3.0,3354.0,3352.7,0.7846]
[1734981706172,3.0,3354.0,3352.8,0.27607051]
[1734981706343,2.98156,3354.0,3352.8,0.27607051]
[1734981706545,2.98189,3353.6,3352.8,0.27607051]
[1734981706857,2.98199,3353.5,3352.7,0.7846]
[1734981707579,3.35263832,3353.9,3352.7,3.76725]
[1734981707580,2.98179,3353.7,3352.7,3.76725]
[1734981707784,0.35263832,3353.9,3352.8,3.01235221]
[1734981707982,3.33428832,3353.9,3352.8,3.01235221]
[1734981708184,0.7653,3354.4,3352.9,0.8228]
[1734981708402,3.0,3354.3,3353.4,0.8228]
[1734981708545,0.38230493,3354.6,3353.5,0.02981649]
[1734981708753,2.98089,3354.7,3353.7,2.98177]
[1734981708949,0.8273,3354.8,3353.8,0.8228]
[1734981709403,2.98126,3354.3,3353.8,0.8228]
[1734981709603,2.98105,3354.6,3353.8,0.8228]
[1734981709912,2.98108,3354.5,3353.8,0.8228]
[1734981710047,0.8273,3354.8,3353.8,0.8228]
[1734981710252,0.8273,3354.8,3353.8,3.80446]
[1734981710499,3.80812,3354.8,3353.9,0.0298143]
[1734981710653,0.8273,3354.8,3353.8,0.8228]
[1734981710855,2.98102,3354.6,3353.8,0.8228]
[1734981711851,2.9813,3354.3,3353.8,0.8228]
[1734981712052,2.98117,3354.4,3353.8,0.8228]
[1734981712294,2.98101,3354.6,3353.8,0.8228]
[1734981712477,3.97704336,3354.6,3353.8,0.8228]
[1734981712683,2.98125,3354.3,3353.8,0.8228]
[1734981712932,3.99603336,3354.6,3353.8,0.8228]
[1734981713111,3.0,3354.6,3353.8,0.8228]
[1734981713320,3.1519936,3354.9,3353.9,0.02981288]
[1734981713516,2.98085,3354.8,3353.8,3.80445]
[1734981714037,3.1520336,3354.9,3353.9,2.98154]
[1734981714182,3.1520336,3354.9,3354.0,0.02981249]
[1734981714382,0.1712636,3354.9,3354.1,2.9814]
[1734981714690,0.1712636,3354.9,3354.1,0.8131]
[1734981716760,3.1519736,3354.9,3354.1,0.8131]
[1734981716915,0.1712636,3354.9,3354.1,0.8131]
[1734981717855,0.1712636,3354.9,3354.1,3.79444]
[1734981718354,0.1712636,3354.9,3354.1,0.8131]
[1734981718580,0.78645396,3354.9,3354.1,0.8131]
[1734981718746,1.59505396,3354.9,3354.1,0.8131]
[1734981718949,2.98102,3354.6,3354.1,0.8131]
[1734981719184,1.59505396,3354.9,3354.1,0.8131]
[1734981719468,2.98089,3354.7,3354.1,0.8131]
[1734981719666,3.4384844,3354.7,3354.1,0.8131]
[1734981720374,2.98089,3354.7,3354.1,0.8131]
[1734981720663,2.98098,3354.6,3354.1,0.8131]
[1734981721869,2.9809,3354.7,3354.1,0.8131]
[1734981722229,2.98099,3354.6,3354.1,0.8131]
[1734981723045,2.98087,3354.8,3354.1,0.8131]
[1734981723266,0.4575924,3354.8,3354.1,0.8131]
[1734981723639,0.9798636,3354.9,3354.1,0.8131]
[1734981723844,2.98102,3354.6,3354.1,0.8131]
[1734981724552,2.98109,3354.5,3354.1,0.8131]
[1734981724771,2.98109,3354.5,3353.6,0.7855]
[1734981724973,2.98109,3354.5,3353.7,0.376742]
[1734981725270,3.9606236,3354.9,3353.7,0.376742]
[1734981725271,0.1712636,3354.9,3353.8,0.81531475]
[1734981725442,0.1712636,3354.9,3354.2,2.98126]
[1734981725653,0.1712636,3354.9,3354.4,2.98115]
[1734981725966,0.1712636,3354.9,3354.3,0.8078]
[1734981726154,0.1712636,3354.9,3354.4,0.378914]
[1734981727299,0.1712636,3354.9,3354.3,0.8078]
[1734981728268,0.1712636,3354.9,3354.4,2.98115]
[1734981728469,0.1712636,3354.9,3354.3,0.8078]
[1734981729571,0.1712636,3354.9,3353.5,1.24287326]
[1734981729572,0.1712636,3354.9,3353.7,0.8078]
[1734981729893,0.7848,3354.2,3353.5,1.24287326]
[1734981730051,2.98154,3354.0,3353.5,1.24287326]
[1734981730248,4.14468,3354.2,3353.3,0.8078]
[1734981730447,2.9817,3353.8,3353.3,0.8078]
[1734981730853,4.73786779,3354.2,3353.2,1.24287326]
[1734981731076,3.0,3354.1,3353.2,1.24287326]
[1734981731278,2.98161,3353.9,3353.2,1.24287326]
[1734981731509,2.98161,3353.9,3352.9,3.79027]
[1734981732010,3.0,3354.1,3353.0,2.98236]
[1734981732166,1.75647779,3354.2,3352.9,0.8078]
[1734981732593,3.0,3353.8,3352.9,0.8078]
[1734981732801,2.98224,3353.2,3352.9,0.8078]
[1734981733013,3.7848,3353.5,3352.5,0.8078]
[1734981733209,2.9822,3353.3,3352.5,0.8078]
[1734981733415,0.7848,3353.5,3352.5,0.8078]
[1734981733620,2.98169,3353.8,3352.5,0.8078]
[1734981733823,2.9816,3353.9,3352.9,2.98243]
[1734981734122,2.9816,3353.9,3353.0,1.087443]
[1734981734495,3.59319779,3354.2,3353.0,1.087443]
[1734981734700,2.9817,3353.8,3353.0,0.7892]
[1734981735010,2.98189,3353.6,3352.7,0.7892]
[1734981735327,2.50158686,3354.1,3352.8,2.98257]
[1734981735624,2.98165,3353.9,3353.0,0.7892]
[1734981735921,2.50158686,3354.1,3353.0,0.7892]
[1734981736233,2.98162,3353.9,3353.0,0.7892]
[1734981736413,2.98164,3353.9,3353.0,0.7892]
[1734981736984,2.98173,3353.8,3353.0,0.7892]
[1734981737496,2.98154,3354.0,3353.0,0.7892]
[1734981738192,2.98161,3353.9,3353.0,0.7892]
[1734981738530,2.98161,3353.9,3353.0,1.166375]
[1734981738897,1.25973677,3354.1,3353.1,0.03918834]
[1734981738898,2.98159,3354.0,3353.1,0.03918834]
[1734981739092,2.9816,3353.9,3353.1,0.03918834]
[1734981739282,2.98153,3354.0,3353.1,0.03918834]
[1734981739626,2.98131,3354.3,3353.3,0.8257]
[1734981739822,0.8291,3354.6,3353.4,0.02981912]
[1734981739823,2.98108,3354.5,3353.4,0.02981912]
[1734981740015,3.11315067,3354.7,3353.5,0.8257]
[1734981740380,6.09406067,3354.7,3353.6,3.01167474]
[1734981740708,2.98125,3354.3,3353.5,0.8257]
[1734981741123,0.55,3354.7,3353.5,0.8257]
[1734981741299,2.98144,3354.1,3353.5,0.8257]
[1734981741629,0.298144,3354.1,3353.5,0.8257]
[1734981741829,2.98144,3354.1,3353.5,0.8257]
[1734981742131,2.98133,3354.2,3353.5,0.8257]
[1734981743095,3.0,3354.6,3353.6,2.98186]
[1734981743295,2.98089,3354.7,3353.8,0.754]
[1734981743931,3.11315067,3354.8,3353.8,0.754]
[1734981744131,0.76497219,3354.7,3353.8,0.754]
[1734981744299,2.98114,3354.5,3353.8,0.754]
[1734981744503,0.1712636,3354.9,3353.8,0.754]
[1734981744928,2.98103,3354.6,3353.8,0.754]
[1734981745141,3.0,3354.6,3353.8,0.754]
[1734981745641,3.0,3354.8,3353.8,0.754]
[1734981745839,0.75366612,3354.7,3353.8,3.73561]
[1734981746020,3.1520336,3354.9,3353.8,3.73561]
[1734981746021,3.0,3354.8,3353.8,3.73561]
[1734981746965,0.1712636,3354.9,3354.0,3.81113]
[1734981747258,0.1712636,3354.9,3354.1,2.9814]
[1734981747618,0.1712636,3354.9,3354.0,0.8297]
[1734981748175,0.1712636,3354.9,3354.0,3.84101178]
[1734981748458,0.1712636,3354.9,3354.1,0.38410118]
[1734981749164,0.1712636,3354.9,3354.2,0.8297]
[1734981749370,0.1712636,3354.9,3354.4,2.98111]
[1734981749575,0.1712636,3354.9,3354.2,0.8297]
[1734981750181,2.98081,3354.8,3354.2,0.8297]
[1734981750397,0.1712636,3354.9,3354.2,0.85951142]
[1734981750682,0.1712636,3354.9,3354.2,1.21378614]
[1734981751042,3.1520036,3354.9,3354.2,1.21378614]
[1734981751238,3.1520036,3354.9,3354.2,0.8297]
[1734981751449,0.1712636,3354.9,3354.2,0.8297]
[1734981751624,2.98084,3354.8,3354.2,0.8297]
[1734981751824,0.1712636,3354.9,3354.2,0.8297]
[1734981752433,0.1712636,3354.9,3354.6,2.98097]
[1734981752639,0.1712636,3354.9,3354.7,0.380687]
[1734981753052,0.1712636,3354.9,3354.8,3.7684]
[1734981754367,3.11315067,3356.6,3355.7,0.7876]
[1734981754524,3.11315067,3356.6,3355.7,3.7676]
[1734981754722,3.11315067,3356.6,3355.8,0.8115]
[1734981755038,6.09236067,3356.6,3355.8,0.8115]
[1734981755257,4.21696805,3356.6,3355.8,0.8115]
[1734981755425,7.19625805,3356.6,3355.8,0.8115]
[1734981755627,4.08310738,3356.6,3355.8,0.8115]
[1734981755967,6.12884777,3357.0,3355.8,0.8115]
[1734981756125,6.12884777,3357.0,3355.5,0.8115]
[1734981756126,3.0,3356.5,3355.5,0.8115]
[1734981756464,0.55,3356.4,3355.5,0.8115]
[1734981756623,5.87764101,3357.0,3355.5,0.8115]
[1734981756624,1.39690541,3357.0,3355.5,0.8115]
[1734981756823,3.0,3357.0,3355.9,2.97976]
[1734981757048,1.285378,3356.8,3356.0,0.8115]
[1734981757649,4.264438,3356.8,3356.0,0.8115]
[1734981758091,1.285378,3356.8,3356.0,0.8115]
[1734981758287,2.97922,3356.6,3356.0,0.8115]
[1734981758444,4.264428,3356.8,3356.0,0.8115]
[1734981758645,0.98231604,3356.7,3356.0,0.8115]
[1734981758881,2.97932,3356.5,3356.0,0.8115]
[1734981759679,2.9793,3356.5,3356.0,0.8115]
[1734981761649,2.97938,3356.4,3356.0,0.8115]
[1734981762685,4.264448,3356.8,3356.0,0.8115]
[1734981762686,1.285378,3356.8,3356.0,0.8115]
[1734981762991,3.35343236,3356.6,3355.7,0.7639]
[1734981763188,2.9799,3355.9,3354.7,2.98081]
[1734981763391,2.9799,3355.9,3354.8,2.98079]
[1734981763545,2.9799,3355.9,3354.9,0.7639]
[1734981763752,2.97942,3356.4,3354.9,0.7639]
[1734981764089,2.98027,3355.4,3354.9,0.7639]
[1734981764447,0.55,3355.8,3354.9,0.7639]
[1734981764646,2.98039,3355.3,3354.9,0.7639]
[1734981765053,2.98047,3355.2,3354.9,0.7639]
[1734981765253,0.55,3355.8,3353.9,2.55873236]
[1734981765254,0.55,3355.8,3354.5,0.7639]
[1734981765494,3.67039324,3355.7,3354.5,0.7639]
[1734981766252,2.98021,3355.5,3354.5,0.7639]
[1734981766455,2.98021,3355.5,3354.5,3.74496]
[1734981766656,7.37057237,3355.9,3353.9,3.15340041]
[1734981766657,0.7947,3355.9,3354.6,0.02980527]
[1734981766900,2.97972,3356.1,3355.1,2.98053]
[1734981767071,2.97972,3356.1,3355.1,0.374443]
[1734981767276,2.97974,3356.0,3355.0,0.7639]
[1734981767788,2.97974,3356.0,3354.5,3.56509404]
[1734981767789,3.18373236,3356.8,3355.4,0.7639]
[1734981767971,2.97921,3356.6,3355.6,2.98008]
[1734981768169,2.97921,3356.6,3355.7,0.7639]
[1734981768409,2.97921,3356.6,3355.7,1.138298]
[1734981768854,2.97941,3356.4,3355.7,1.138298]
[1734981769058,3.0,3356.7,3355.2,0.7639]
[1734981769289,0.7947,3356.3,3355.2,0.7639]
[1734981769470,2.97956,3356.2,3355.2,0.7639]
[1734981769655,2.9798,3356.0,3355.2,0.7639]
[1734981770299,2.97956,3356.2,3355.2,4.11877]
[1734981771617,2.97968,3356.1,3355.2,1.13836]
[1734981772095,3.0,3356.5,3355.2,3.74434]
[1734981772401,3.0,3356.5,3354.8,3.01053899]
[1734981772402,3.0,3356.4,3355.0,0.7644]
[1734981772604,2.9792,3356.6,3355.5,0.7644]
[1734981772765,3.0,3356.6,3355.5,0.7644]
[1734981772962,3.0,3356.7,3355.5,0.7644]
[1734981773166,2.97974,3356.0,3355.5,0.7644]
[1734981773506,1.05653721,3356.6,3354.7,0.8032]
[1734981773507,2.97992,3355.8,3354.7,0.8032]
[1734981773688,2.98,3355.7,3354.7,0.8032]
[1734981773889,2.98025,3355.5,3354.7,0.8032]
[1734981774092,2.97973,3356.0,3354.7,1.181625]
[1734981774402,2.98011,3355.6,3354.7,1.181625]
[1734981774559,2.98003,3355.7,3354.7,4.162475]
[1734981774764,2.97985,3355.9,3354.9,3.78383]
[1734981775160,0.61144867,3356.2,3354.9,0.8032]
[1734981775389,2.9798,3356.0,3355.0,2.98061]
[1734981775611,0.9968541,3356.1,3354.9,0.8032]
[1734981775801,2.97994,3355.8,3354.9,0.8032]
[1734981776001,0.9968541,3356.1,3355.0,2.98062]
[1734981776208,2.97976,3356.0,3355.0,2.98062]
[1734981776407,0.9968541,3356.1,3355.0,0.4162245]
[1734981776709,2.97996,3355.8,3354.9,0.8032]
[1734981777224,2.98007,3355.7,3354.9,0.8032]
[1734981777436,0.9968541,3356.1,3354.9,0.8032]
[1734981777716,2.98011,3355.6,3354.9,0.8032]
[1734981777883,2.98027,3355.4,3354.9,0.8032]
[1734981778086,2.98041,3355.3,3354.9,0.8032]
[1734981778298,2.98003,3355.7,3354.9,0.8032]
[1734981778496,0.9968541,3356.1,3355.0,0.02980389]
[1734981778497,3.0,3356.1,3355.0,0.02980389]
[1734981778683,0.6948381,3356.1,3355.1,2.98052]
[1734981778882,2.97973,3356.0,3354.9,3.78387]
[1734981779483,1.38964867,3356.2,3354.9,3.78387]
[1734981779684,1.38964867,3356.2,3354.9,0.8032]
[1734981779908,2.97967,3356.1,3355.0,2.98061]
[1734981780126,2.97967,3356.1,3355.2,0.7574]
[1734981780631,1.38964867,3356.2,3355.2,0.7574]
[1734981780809,5.97944,3356.4,3355.2,0.7574]
[1734981780810,2.97983,3355.9,3355.2,0.7574]
[1734981781230,2.97918,3356.7,3355.7,0.7574]
[1734981781390,2.97928,3356.6,3355.7,0.7574]
[1734981781586,0.360428,3356.5,3355.7,0.7574]